[Event "CZE Extraliga 2019-20"]
[Site "Czech Republic"]
[Date "2019.12.01"]
[Round "4.5"]
[White "Koziol, Kamil"]
[Black "Hollan, Martin"]
[Result "1/2-1/2"]
[ECO "B31"]
[WhiteElo "2292"]
[BlackElo "2403"]
[Annotator "ChessBase"]
[PlyCount "47"]
[EventDate "2019.09.15"]
[EventType "team-tourn"]
[EventCountry "CZE"]
[SourceTitle "playchess.com"]
[Source "ChessBase"]
[SourceQuality "1"]
[WhiteTeam "Ostrava"]
[BlackTeam "Kromeriz "]
[TimeControl "40/5400+30:1800+30"]

1. e4 {[%emt 0:00:00]} c5 {[%emt 0:00:00]} 2. Nf3 {[%emt 0:00:00]} Nc6 {[%emt 0:00:00]} 3. Bb5 {[%emt 0:00:31]} g6 {[%emt 0:00:00]} 4. Bxc6 {[%emt 0:01:28]} dxc6 {[%emt 0:00:00]} 5. d3 {[%emt 0:01:05]} Bg7 {[%emt 0:00:02]} 6. h3 {[%emt 0:01:34]} Nh6 {[%emt 0:00:46]} 7. O-O {[%emt 0:01:20]} b6 {[%emt 0:00:11]} 8. a4 {[%emt 0:04:01]} a5 {[%emt 0:00:38]} 9. Be3 {[%emt 0:02:19]} f6 {[%emt 0:10:23]} 10. Na3 {[%emt 0:03:26]} Nf7 {[%emt 0:02:31]} 11. Nc4 {[%emt 0:02:24]} Ba6 {[%emt 0:14:59]} 12. Nfd2 {[%emt 0:02:21]} Nd6 {[%emt 0:02:04]} 13. f4 {[%emt 0:06:44]} e6 {[%emt 0:16:24]} 14. Qf3 {[%emt 0:10:51]} O-O {[%emt 0:06:29]} 15. g4 {[%emt 0:05:18]} Nxc4 {[%emt 0:04:27]} 16. Nxc4 {[%emt 0:04:53]} Bxc4 {[%emt 0:04:09]} 17. dxc4 {[%emt 0:00:17]} Qe7 {[%emt 0:00:07]} 18. Rad1 {[%emt 0:12:58]} Bh6 {[%emt 0:07:51]} 19. Kg2 {[%emt 0:07:57]} e5 {[%emt 0:04:04]} 20. f5 {[%emt 0:07:00]} Bxe3 {[%emt 0:01:04]} 21. Qxe3 {[%emt 0:00:15]} Rad8 {[%emt 0:04:07]} 22. Qe2 {[%emt 0:03:23]} Rxd1 {[%emt 0:03:44]} 23. Rxd1 {[%emt 0:00:10]} gxf5 {[%emt 0:08:16]} 24. gxf5 {[%emt 0:00:48]} 1/2-1/2

[Event "CZE Extraliga 2019-20"]
[Site "Czech Republic"]
[Date "2019.12.02"]
[Round "4.6"]
[White "Babula, Vlastimil"]
[Black "Zeman, Matyas"]
[Result "1-0"]
[ECO "D46"]
[WhiteElo "2572"]
[BlackElo "2261"]
[Annotator "ChessBase"]
[PlyCount "69"]
[EventDate "2019.09.15"]
[EventType "team-tourn"]
[EventCountry "CZE"]
[SourceTitle "playchess.com"]
[Source "ChessBase"]
[SourceQuality "1"]
[WhiteTeam "Novoborsky"]
[BlackTeam "Brno"]
[WhiteTeamCountry "CZE"]
[BlackTeamCountry "CZE"]
[TimeControl "40/5400+30:1800+30"]

1. d4 {[%emt 0:00:00]} e6 {[%emt 0:00:00]} 2. c4 {[%emt 0:00:00]} d5 {[%emt 0:00:01]} 3. Nc3 {[%emt 0:00:49]} Nf6 {[%emt 0:00:21]} 4. Nf3 {[%emt 0:00:39]} c6 {[%emt 0:00:57]} 5. e3 {[%emt 0:03:18]} Nbd7 {[%emt 0:01:02]} 6. Qc2 {[%emt 0:00:58]} Bd6 {[%emt 0:01:27]} 7. Be2 {[%emt 0:03:16]} O-O {[%emt 0:01:57]} 8. O-O {[%emt 0:00:22]} dxc4 {[%emt 0:08:24]} 9. Bxc4 {[%emt 0:00:20]} b5 {[%emt 0:02:12]} 10. Be2 {[%emt 0:05:41]} Bb7 {[%emt 0:14:21]} 11. a3 {[%emt 0:00:52]} Qe7 {[%emt 0:03:07]} 12. e4 {[%emt 0:06:48]} e5 {[%emt 0:00:27]} 13. Rd1 {[%emt 0:01:31]} Rfe8 {[%emt 0:10:59]} 14. Bg5 {[%emt 0:09:06]} Rad8 {[%emt 0:06:36]} 15. Rd2 {[%emt 0:17:36]} h6 {[%emt 0:02:53]} 16. Bh4 {[%emt 0:01:35]} exd4 {[%emt 0:20:43]} 17. Nxd4 {[%emt 0:20:45]} Bf4 {[%emt 0:00:30]} 18. Rdd1 {[%emt 0:00:30]} Nc5 {[%emt 0:00:30]} 19. Nf5 {[%emt 0:00:30]} Qe6 {[%emt 0:00:30]} 20. Bf3 {[%emt 0:00:30]} g6 {[%emt 0:05:51]} 21. Ne2 {[%emt 0:06:40]} Rxd1+ {[%emt 0:02:45]} 22. Rxd1 {[%emt 0:01:33]} Ncxe4 {[%emt 0:02:54]} 23. Bxe4 {[%emt 0:03:57]} gxf5 {[%emt 0:02:18]} 24. Bxf5 {[%emt 0:04:14]} Qxe2 {[%emt 0:00:08]} 25. Qxe2 {[%emt 0:00:16]} Rxe2 {[%emt 0:00:04]} 26. Bxf6 {[%emt 0:00:11]} Re8 {[%emt 0:01:04]} 27. Bd7 {[%emt 0:01:43]} Re2 {[%emt 0:02:43]} 28. Bg4 {[%emt 0:04:31]} Re8 {[%emt 0:00:13]} 29. h4 {[%emt 0:00:24]} Bc8 {[%emt 0:05:08]} 30. Bf3 {[%emt 0:00:38]} Re6 {[%emt 0:02:35]} 31. Rd8+ {[%emt 0:01:27]} Kh7 {[%emt 0:00:00]} 32. Bc3 {[%emt 0:00:26]} Ba6 {[%emt 0:02:18]} 33. Rh8+ {[%emt 0:00:37]} Kg6 {[%emt 0:00:04]} 34. Rg8+ {[%emt 0:00:27]} Kf5 {[%emt 0:00:34]} 35. g4# {[%emt 0:00:24]} 1-0

[Event "CZE Extraliga 2019-20"]
[Site "Czech Republic"]
[Date "2019.12.01"]
[Round "4.6"]
[White "Kislinsky, Alexey"]
[Black "Chytilek, Roman"]
[Result "1-0"]
[ECO "B10"]
[WhiteElo "2436"]
[BlackElo "2330"]
[Annotator "NA"]
[PlyCount "87"]
[EventDate "2019.09.15"]
[EventType "team-tourn"]
[EventCountry "CZE"]
[SourceTitle "playchess.com"]
[Source "ChessBase"]
[SourceQuality "1"]
[WhiteTeam "Lysa nad Labem"]
[BlackTeam "Duras"]
[TimeControl "40/5400+30:1800+30"]

1. e4 {[%emt 0:00:00]} c6 {[%emt 0:00:00]} 2. Nc3 {[%emt 0:00:29]} d5 {[%emt 0:00:01]} 3. Qe2 {[%emt 0:00:17]} d4 {[%emt 0:08:07]} 4. Nd1 {[%emt 0:00:10]} e5 {[%emt 0:00:20]} 5. g3 {[%emt 0:00:22]} Bd6 {[%emt 0:05:24]} 6. Bg2 {[%emt 0:01:49]} Ne7 {[%emt 0:05:12]} 7. d3 {[%emt 0:00:38]} c5 {[%emt 0:00:42]} 8. f4 {[%emt 0:00:31]} Nbc6 {[%emt 0:00:38]} 9. Nf3 {[%emt 0:00:25]} Qc7 {[%emt 0:04:31]} 10. f5 {[%emt 0:06:16]} Bd7 {[%emt 0:02:54]} 11. O-O {[%emt 0:01:03]} O-O-O {[%emt 0:05:53]} 12. c4 {[%emt 0:00:15]} Kb8 {[%emt 0:03:39]} 13. a3 {[%emt 0:06:04]} Na5 {[%emt 0:03:04]} 14. Qc2 {[%emt 0:02:37]} f6 {[%emt 0:09:33]} 15. Rb1 {[%emt 0:05:47]} b5 {[%emt 0:03:59]} 16. b4 {[%emt 0:02:07]} Nb7 {[%emt 0:00:30]} 17. bxc5 {[%emt 0:06:11]} Qxc5 {[%emt 0:01:33]} 18. Qb2 {[%emt 0:03:27]} a6 {[%emt 0:02:42]} 19. Rf2 {[%emt 0:08:59]} Rc8 {[%emt 0:03:09]} 20. Rc2 {[%emt 0:00:10]} Qa7 {[%emt 0:02:19]} 21. Nf2 {[%emt 0:02:57]} bxc4 {[%emt 0:16:16]} 22. Rxc4 {[%emt 0:00:58]} Rxc4 {[%emt 0:00:17]} 23. dxc4 {[%emt 0:00:05]} Rc8 {[%emt 0:01:21]} 24. Bd2 {[%emt 0:10:54]} Rxc4 {[%emt 0:10:06]} 25. Bf1 {[%emt 0:00:33]} Rc6 {[%emt 0:01:08]} 26. a4 {[%emt 0:04:58]} Bc8 {[%emt 0:03:02]} 27. Nd3 {[%emt 0:02:44]} Ka8 {[%emt 0:03:22]} 28. Qa2 {[%emt 0:01:39]} Nc5 {[%emt 0:01:52]} 29. Nxc5 {[%emt 0:00:14]} Bxc5 {[%emt 0:00:27]} 30. Bd3 {[%emt 0:01:21]} g6 {[%emt 0:01:32]} 31. Ba5 {[%emt 0:05:02]} Bb7 {[%emt 0:00:51]} 32. Qf7 {[%emt 0:00:50]} gxf5 {[%emt 0:00:47]} 33. exf5 {[%emt 0:00:06]} Rc8 {[%emt 0:00:39]} 34. Nd2 {[%emt 0:00:40]} Nc6 {[%emt 0:00:29]} 35. Bc7 {[%emt 0:01:19]} Nb4 {[%emt 0:00:23]} 36. Rxb4 {[%emt 0:05:50]} Bxb4 {[%emt 0:00:02]} 37. Nc4 {[%emt 0:00:05]} Bc5 {[%emt 0:01:00]} 38. Qd7 {[%emt 0:02:22]} Rf8 {[%emt 0:00:42]} 39. a5 {[%emt 0:00:31]} Bf3 {[%emt 0:00:30]} 40. Nb6+ {[%emt 0:04:28]} Bxb6 {[%emt 0:00:10]} 41. axb6 {[%emt 0:30:04]} Qb7 {[%emt 0:30:39]} 42. Qa4 {[%emt 0:00:07]} Bh1 {[%emt 0:00:00]} 43. Qa2 {[%emt 0:00:00]} Bd5 {[%emt 0:00:00]} 44. Qa3 {[%emt 0:00:00]} 1-0

[Event "CZE Extraliga 2019-20"]
[Site "Czech Republic"]
[Date "2019.12.01"]
[Round "4.6"]
[White "Rydl, Jiri"]
[Black "Petr, Martin"]
[Result "1/2-1/2"]
[ECO "A11"]
[WhiteElo "2422"]
[BlackElo "2460"]
[Annotator "ChessBase"]
[PlyCount "133"]
[EventDate "2019.09.15"]
[EventType "team-tourn"]
[EventCountry "CZE"]
[SourceTitle "playchess.com"]
[Source "ChessBase"]
[SourceQuality "1"]
[WhiteTeam "Siesta Solution Unichess "]
[BlackTeam "Pardubice"]
[TimeControl "40/5400+30:1800+30"]

1. c4 {[%emt 0:00:00]} Nf6 {[%emt 0:00:42]} 2. g3 {[%emt 0:00:00]} c6 {[%emt 0:00:04]} 3. Nf3 {[%emt 0:00:03]} d5 {[%emt 0:00:06]} 4. Bg2 {[%emt 0:00:12]} dxc4 {[%emt 0:01:37]} 5. O-O {[%emt 0:00:16]} Nbd7 {[%emt 0:00:04]} 6. Na3 {[%emt 0:00:41]} Nb6 {[%emt 0:01:08]} 7. Qc2 {[%emt 0:00:43]} Be6 {[%emt 0:00:16]} 8. Ng5 {[%emt 0:00:49]} Bg4 {[%emt 0:00:13]} 9. f3 {[%emt 0:02:54]} Bh5 {[%emt 0:07:28]} 10. Nxc4 {[%emt 0:01:42]} Qd4+ {[%emt 0:09:48]} 11. Ne3 {[%emt 0:00:12]} Nfd5 {[%emt 0:03:57]} 12. Ne4 {[%emt 0:12:47]} e6 {[%emt 0:06:07]} 13. Nf2 {[%emt 0:03:41]} Bg6 {[%emt 0:04:29]} 14. Qb3 {[%emt 0:00:43]} Nxe3 {[%emt 0:02:50]} 15. dxe3 {[%emt 0:00:14]} Qb4 {[%emt 0:00:38]} 16. Qxb4 {[%emt 0:01:28]} Bxb4 {[%emt 0:00:07]} 17. Nd3 {[%emt 0:00:20]} Be7 {[%emt 0:02:15]} 18. e4 {[%emt 0:01:08]} O-O {[%emt 0:00:48]} 19. Be3 {[%emt 0:04:21]} Rfd8 {[%emt 0:04:53]} 20. Rfc1 {[%emt 0:12:15]} Bf6 {[%emt 0:08:28]} 21. Rc2 {[%emt 0:01:06]} Bd4 {[%emt 0:00:37]} 22. Kf2 {[%emt 0:03:27]} f5 {[%emt 0:05:28]} 23. Bxd4 {[%emt 0:02:30]} Rxd4 {[%emt 0:00:07]} 24. Nc5 {[%emt 0:03:46]} fxe4 {[%emt 0:00:37]} 25. fxe4 {[%emt 0:00:08]} e5 {[%emt 0:06:21]} 26. Nxb7 {[%emt 0:03:15]} Rf8+ {[%emt 0:01:35]} 27. Ke1 {[%emt 0:04:25]} Nc4 {[%emt 0:02:26]} 28. Bh3 {[%emt 0:01:12]} Rb8 {[%emt 0:14:36]} 29. Nc5 {[%emt 0:05:56]} Rxb2 {[%emt 0:02:10]} 30. Rxb2 {[%emt 0:07:02]} Nxb2 {[%emt 0:00:11]} 31. Rc1 {[%emt 0:06:37]} Bf7 {[%emt 0:04:09]} 32. Rc2 {[%emt 0:06:49]} Nc4 {[%emt 0:01:13]} 33. Ne6 {[%emt 0:01:32]} Rxe4 {[%emt 0:02:15]} 34. Bf5 {[%emt 0:00:45]} Ne3 {[%emt 0:00:16]} 35. Rd2 {[%emt 0:02:24]} Rb4 {[%emt 0:06:11]} 36. Rd8+ {[%emt 0:00:40]} Be8 {[%emt 0:00:02]} 37. Rxe8+ {[%emt 0:00:51]} Kf7 {[%emt 0:00:04]} 38. Rf8+ {[%emt 0:00:20]} Ke7 {[%emt 0:00:04]} 39. Bh3 {[%emt 0:04:42]} Ng4 {[%emt 0:00:17]} 40. a3 {[%emt 0:04:27]} Rc4 {[%emt 0:02:30]} 41. Rg8 {[%emt 0:07:55]} Kxe6 {[%emt 0:00:46]} 42. Rxg7 {[%emt 0:00:10]} h5 {[%emt 0:00:25]} 43. Rh7 {[%emt 0:02:05]} Kd5 {[%emt 0:03:22]} 44. Rxh5 {[%emt 0:00:33]} Ne3 {[%emt 0:00:06]} 45. Rh6 {[%emt 0:02:29]} Rc2 {[%emt 0:10:02]} 46. Bd7 {[%emt 0:02:16]} e4 {[%emt 0:01:15]} 47. g4 {[%emt 0:01:29]} Ng2+ {[%emt 0:00:55]} 48. Kf2 {[%emt 0:00:36]} Nf4 {[%emt 0:00:04]} 49. Bxc6+ {[%emt 0:04:50]} Rxc6 {[%emt 0:02:02]} 50. Rxc6 {[%emt 0:00:11]} Kxc6 {[%emt 0:00:01]} 51. Ke3 {[%emt 0:00:07]} Nd5+ {[%emt 0:06:09]} 52. Kxe4 {[%emt 0:00:14]} Kd6 {[%emt 0:00:05]} 53. Kf5 {[%emt 0:01:12]} Ne3+ {[%emt 0:00:25]} 54. Kg5 {[%emt 0:00:35]} Ke6 {[%emt 0:01:51]} 55. h4 {[%emt 0:00:30]} Kf7 {[%emt 0:00:08]} 56. h5 {[%emt 0:02:53]} a5 {[%emt 0:02:54]} 57. a4 {[%emt 0:00:28]} Kg7 {[%emt 0:00:22]} 58. Kf4 {[%emt 0:11:00]} Nd5+ {[%emt 0:00:27]} 59. Ke5 {[%emt 0:02:01]} Nc3 {[%emt 0:00:13]} 60. e4 {[%emt 0:00:24]} Nxa4 {[%emt 0:00:06]} 61. Kd4 {[%emt 0:01:23]} Nb6 {[%emt 0:02:17]} 62. g5 {[%emt 0:00:18]} a4 {[%emt 0:02:43]} 63. Kc3 {[%emt 0:00:48]} a3 {[%emt 0:00:07]} 64. Kb3 {[%emt 0:00:12]} Nc4 {[%emt 0:00:05]} 65. Ka2 {[%emt 0:00:08]} Kh7 {[%emt 0:00:05]} 66. Kb3 {[%emt 0:00:26]} Kg7 {[%emt 0:00:06]} 67. Ka2 {[%emt 0:00:12]} 1/2-1/2

[Event "CZE Extraliga 2019-20"]
[Site "Czech Republic"]
[Date "2019.12.01"]
[Round "4.6"]
[White "Rubes, Jan"]
[Black "Malik, Jan"]
[Result "1-0"]
[ECO "B53"]
[WhiteElo "2363"]
[BlackElo "2291"]
[Annotator "NA"]
[PlyCount "93"]
[EventDate "2019.09.15"]
[EventType "team-tourn"]
[EventCountry "CZE"]
[SourceTitle "playchess.com"]
[Source "ChessBase"]
[SourceQuality "1"]
[WhiteTeam "Kromeriz "]
[BlackTeam "Ostrava"]
[TimeControl "40/5400+30:1800+30"]

1. e4 {[%emt 0:00:00]} c5 {[%emt 0:00:00]} 2. Nf3 {[%emt 0:00:00]} d6 {[%emt 0:00:00]} 3. d4 {[%emt 0:00:00]} cxd4 {[%emt 0:00:00]} 4. Qxd4 {[%emt 0:00:00]} Nc6 {[%emt 0:00:00]} 5. Qe3 {[%emt 0:00:00]} Nf6 {[%emt 0:03:43]} 6. Be2 {[%emt 0:00:36]} g6 {[%emt 0:06:01]} 7. c4 {[%emt 0:00:09]} Bg7 {[%emt 0:00:17]} 8. O-O {[%emt 0:00:14]} O-O {[%emt 0:00:09]} 9. Nc3 {[%emt 0:00:04]} Ng4 {[%emt 0:06:10]} 10. Qg5 {[%emt 0:00:05]} Nge5 {[%emt 0:03:10]} 11. Nxe5 {[%emt 0:00:50]} dxe5 {[%emt 0:02:06]} 12. Be3 {[%emt 0:00:12]} Nd4 {[%emt 0:00:35]} 13. Rac1 {[%emt 0:01:40]} e6 {[%emt 0:04:19]} 14. Rfd1 {[%emt 0:06:18]} Bd7 {[%emt 0:04:14]} 15. Bf1 {[%emt 0:00:29]} Bc6 {[%emt 0:02:19]} 16. b4 {[%emt 0:14:15]} b6 {[%emt 0:04:40]} 17. f3 {[%emt 0:02:33]} f5 {[%emt 0:03:11]} 18. b5 {[%emt 0:06:39]} Bb7 {[%emt 0:00:58]} 19. c5 {[%emt 0:04:10]} bxc5 {[%emt 0:01:24]} 20. Na4 {[%emt 0:03:32]} Bf6 {[%emt 0:19:06]} 21. Qh6 {[%emt 0:00:04]} Bg7 {[%emt 0:06:05]} 22. Qh3 {[%emt 0:00:27]} Rc8 {[%emt 0:01:24]} 23. Nxc5 {[%emt 0:01:26]} Qe7 {[%emt 0:04:02]} 24. Nxb7 {[%emt 0:06:41]} Qxb7 {[%emt 0:00:03]} 25. exf5 {[%emt 0:05:23]} exf5 {[%emt 0:00:47]} 26. Qh4 {[%emt 0:08:24]} Bf6 {[%emt 0:03:34]} 27. Qf2 {[%emt 0:00:38]} Rxc1 {[%emt 0:01:08]} 28. Rxc1 {[%emt 0:00:11]} Rc8 {[%emt 0:00:10]} 29. Qd2 {[%emt 0:12:11]} Rd8 {[%emt 0:04:59]} 30. Qa5 {[%emt 0:00:10]} Rd7 {[%emt 0:02:17]} 31. Qc3 {[%emt 0:12:18]} Kg7 {[%emt 0:01:54]} 32. Qc8 {[%emt 0:00:37]} e4 {[%emt 0:02:32]} 33. Qxb7 {[%emt 0:01:30]} Rxb7 {[%emt 0:00:10]} 34. fxe4 {[%emt 0:00:06]} fxe4 {[%emt 0:00:06]} 35. a4 {[%emt 0:03:17]} Nf5 {[%emt 0:00:19]} 36. Bf4 {[%emt 0:01:24]} Bd4+ {[%emt 0:00:39]} 37. Kh1 {[%emt 0:00:02]} Bb6 {[%emt 0:00:26]} 38. g4 {[%emt 0:00:39]} Ne3 {[%emt 0:07:21]} 39. Be2 {[%emt 0:01:07]} Nd5 {[%emt 0:00:58]} 40. Be5+ {[%emt 0:00:20]} Kh6 {[%emt 0:00:12]} 41. h4 {[%emt 0:30:26]} Be3 {[%emt 0:31:08]} 42. g5+ {[%emt 0:00:56]} Bxg5 {[%emt 0:00:02]} 43. hxg5+ {[%emt 0:00:04]} Kxg5 {[%emt 0:00:07]} 44. a5 {[%emt 0:07:32]} Kf5 {[%emt 0:00:26]} 45. Bh2 {[%emt 0:01:51]} Rd7 {[%emt 0:02:39]} 46. Rf1+ {[%emt 0:01:31]} Kg5 {[%emt 0:00:18]} 47. Rd1 {[%emt 0:00:18]} 1-0

[Event "CZE Extraliga 2019-20"]
[Site "Czech Republic"]
[Date "2019.12.01"]
[Round "4.7"]
[White "Jirovsky, Milos"]
[Black "Jurcik, Martin"]
[Result "1/2-1/2"]
[ECO "D78"]
[WhiteElo "2452"]
[BlackElo "2360"]
[Annotator "ChessBase"]
[PlyCount "64"]
[EventDate "2019.09.15"]
[EventType "team-tourn"]
[EventCountry "CZE"]
[SourceTitle "playchess.com"]
[Source "ChessBase"]
[SourceQuality "1"]
[WhiteTeam "Pardubice "]
[BlackTeam "Siesta Solution Unichess "]
[TimeControl "40/5400+30:1800+30"]

1. Nf3 {[%emt 0:00:00]} d5 {[%emt 0:00:09]} 2. g3 {[%emt 0:00:20]} g6 {[%emt 0:08:01]} 3. Bg2 {[%emt 0:01:21]} Bg7 {[%emt 0:01:39]} 4. d4 {[%emt 0:00:13]} Nf6 {[%emt 0:02:29]} 5. O-O {[%emt 0:00:26]} O-O {[%emt 0:00:42]} 6. Nbd2 {[%emt 0:01:06]} c6 {[%emt 0:19:48]} 7. c4 {[%emt 0:02:50]} Bf5 {[%emt 0:00:37]} 8. b3 {[%emt 0:00:49]} Nbd7 {[%emt 0:00:20]} 9. Bb2 {[%emt 0:01:49]} Ne4 {[%emt 0:02:54]} 10. Nh4 {[%emt 0:04:42]} Nxd2 {[%emt 0:03:25]} 11. Qxd2 {[%emt 0:00:10]} Be6 {[%emt 0:00:14]} 12. e4 {[%emt 0:04:03]} dxe4 {[%emt 0:23:28]} 13. Bxe4 {[%emt 0:00:47]} Nf6 {[%emt 0:00:52]} 14. Bg2 {[%emt 0:00:37]} Qd7 {[%emt 0:07:40]} 15. Rfe1 {[%emt 0:01:11]} Rad8 {[%emt 0:00:36]} 16. Nf3 {[%emt 0:01:22]} Rfe8 {[%emt 0:01:57]} 17. Rad1 {[%emt 0:01:35]} Qc8 {[%emt 0:00:17]} 18. Qb4 {[%emt 0:06:48]} Bf8 {[%emt 0:12:03]} 19. Qa5 {[%emt 0:01:36]} a6 {[%emt 0:00:13]} 20. Ne5 {[%emt 0:01:45]} Bh3 {[%emt 0:02:03]} 21. Bh1 {[%emt 0:01:24]} Bg7 {[%emt 0:00:00]} 22. Nd3 {[%emt 0:14:17]} Bf5 {[%emt 0:01:37]} 23. Qb4 {[%emt 0:04:12]} Bxd3 {[%emt 0:00:59]} 24. Rxd3 {[%emt 0:00:08]} e6 {[%emt 0:00:23]} 25. Red1 {[%emt 0:01:30]} Rd7 {[%emt 0:00:38]} 26. Qd2 {[%emt 0:03:40]} Red8 {[%emt 0:00:02]} 27. Bc3 {[%emt 0:00:54]} Qc7 {[%emt 0:02:29]} 28. Bg2 {[%emt 0:07:04]} h6 {[%emt 0:01:45]} 29. h4 {[%emt 0:04:36]} h5 {[%emt 0:00:12]} 30. Qe2 {[%emt 0:01:19]} Ng4 {[%emt 0:01:02]} 31. Bh3 {[%emt 0:02:16]} Nh6 {[%emt 0:00:12]} 32. Kg2 {[%emt 0:03:51]} Kh7 {[%emt 0:00:46]} 1/2-1/2

[Event "CZE Extraliga 2019-20"]
[Site "Czech Republic"]
[Date "2019.12.03"]
[Round "4.7"]
[White "Vymazal, Bronislav"]
[Black "Nguyen, Thai Dai Van"]
[Result "0-1"]
[ECO "B31"]
[WhiteElo "2397"]
[BlackElo "2548"]
[Annotator "RC"]
[PlyCount "108"]
[EventDate "2019.09.15"]
[EventType "team-tourn"]
[EventCountry "CZE"]
[SourceTitle "playchess.com"]
[Source "ChessBase"]
[SourceQuality "1"]
[WhiteTeam "Brno"]
[BlackTeam "Novoborsky"]
[WhiteTeamCountry "CZE"]
[BlackTeamCountry "CZE"]
[TimeControl "40/5400+30:1800+30"]

1. e4 {[%emt 0:00:00]} c5 {[%emt 0:00:00]} 2. Nf3 {[%emt 0:00:00]} Nc6 {[%emt 0:00:00]} 3. Bb5 {[%emt 0:00:34]} g6 {[%emt 0:00:00]} 4. Bxc6 {[%emt 0:00:30]} bxc6 {[%emt 0:00:00]} 5. O-O {[%emt 0:01:56]} Bg7 {[%emt 0:00:00]} 6. Re1 {[%emt 0:03:55]} Nh6 {[%emt 0:00:00]} 7. c3 {[%emt 0:02:07]} O-O {[%emt 0:00:05]} 8. d4 {[%emt 0:00:23]} cxd4 {[%emt 0:00:05]} 9. cxd4 {[%emt 0:00:05]} d5 {[%emt 0:00:05]} 10. e5 {[%emt 0:02:18]} f6 {[%emt 0:00:05]} 11. e6 {[%emt 0:16:26]} Nf5 {[%emt 0:06:41]} 12. Nc3 {[%emt 0:09:13]} Qd6 {[%emt 0:37:27]} 13. Qe2 {[%emt 0:02:14]} a5 {[%emt 0:00:06]} 14. Na4 {[%emt 0:07:23]} Qb4 {[%emt 0:11:57]} 15. b3 {[%emt 0:07:55]} Nxd4 {[%emt 0:07:29]} 16. Nxd4 {[%emt 0:00:06]} Qxd4 {[%emt 0:00:08]} 17. Ba3 {[%emt 0:01:20]} Qe4 {[%emt 0:08:11]} 18. Qd2 {[%emt 0:16:12]} Qf5 {[%emt 0:00:04]} 19. Bxe7 {[%emt 0:03:42]} Re8 {[%emt 0:00:47]} 20. Nb6 {[%emt 0:00:06]} Rb8 {[%emt 0:01:28]} 21. Nxc8 {[%emt 0:01:27]} Rbxc8 {[%emt 0:00:13]} 22. Bc5 {[%emt 0:00:17]} Rxe6 {[%emt 0:00:05]} 23. Rxe6 {[%emt 0:07:41]} Qxe6 {[%emt 0:00:05]} 24. Re1 {[%emt 0:00:20]} Qd7 {[%emt 0:07:51]} 25. Re7 {[%emt 0:04:36]} Qf5 {[%emt 0:02:08]} 26. Qxa5 {[%emt 0:00:29]} Bf8 {[%emt 0:00:25]} 27. Re1 {[%emt 0:00:53]} d4 {[%emt 0:00:31]} 28. Bb6 {[%emt 0:03:04]} Qxa5 {[%emt 0:07:40]} 29. Bxa5 {[%emt 0:00:06]} Ra8 {[%emt 0:00:04]} 30. Bb6 {[%emt 0:02:26]} Bb4 {[%emt 0:00:06]} 31. Rd1 {[%emt 0:01:14]} c5 {[%emt 0:00:03]} 32. a4 {[%emt 0:00:30]} Kf7 {[%emt 0:00:36]} 33. Bc7 {[%emt 0:05:01]} Ke6 {[%emt 0:00:34]} 34. Kf1 {[%emt 0:00:47]} Kd5 {[%emt 0:00:13]} 35. Ke2 {[%emt 0:00:50]} c4 {[%emt 0:05:53]} 36. bxc4+ {[%emt 0:00:05]} Kxc4 {[%emt 0:00:02]} 37. a5 {[%emt 0:00:48]} Bxa5 {[%emt 0:05:49]} 38. Bxa5 {[%emt 0:00:06]} Rxa5 {[%emt 0:00:02]} 39. Rc1+ {[%emt 0:00:51]} Kd5 {[%emt 0:00:31]} 40. Rc8 {[%emt 0:01:15]} Rc5 {[%emt 0:00:00]} 41. Rd8+ {[%emt 0:02:14]} Kc4 {[%emt 0:02:51]} 42. Kd2 {[%emt 0:00:19]} Ra5 {[%emt 0:02:21]} 43. Ke2 {[%emt 0:10:48]} Ra2+ {[%emt 0:00:32]} 44. Kf3 {[%emt 0:00:05]} d3 {[%emt 0:00:44]} 45. Rd7 {[%emt 0:07:15]} h5 {[%emt 0:01:20]} 46. h3 {[%emt 0:02:07]} Ra6 {[%emt 0:09:40]} 47. Rc7+ {[%emt 0:05:41]} Kd4 {[%emt 0:00:13]} 48. g4 {[%emt 0:01:18]} hxg4+ {[%emt 0:00:05]} 49. hxg4 {[%emt 0:00:03]} Re6 {[%emt 0:00:44]} 50. Rd7+ {[%emt 0:03:27]} Kc3 {[%emt 0:00:06]} 51. Rc7+ {[%emt 0:00:33]} Kb2 {[%emt 0:00:21]} 52. Kg2 {[%emt 0:01:47]} d2 {[%emt 0:00:11]} 53. Rb7+ {[%emt 0:00:05]} Kc2 {[%emt 0:00:06]} 54. Rc7+ {[%emt 0:00:02]} Kd3 {[%emt 0:00:05]} 0-1

[Event "CZE Extraliga 2019-20"]
[Site "Czech Republic"]
[Date "2019.12.01"]
[Round "4.7"]
[White "Bures, Jaroslav"]
[Black "Jasny, Stanislav"]
[Result "1/2-1/2"]
[ECO "B48"]
[WhiteElo "2388"]
[BlackElo "2326"]
[Annotator "ChessBase"]
[PlyCount "40"]
[EventDate "2019.09.15"]
[EventType "team-tourn"]
[EventCountry "CZE"]
[SourceTitle "playchess.com"]
[Source "ChessBase"]
[SourceQuality "1"]
[WhiteTeam "Poruba "]
[BlackTeam "Frydek-Mistek"]
[TimeControl "40/5400+30:1800+30"]

1. e4 {[%emt 0:00:00]} c5 {[%emt 0:00:02]} 2. Nf3 {[%emt 0:00:00]} e6 {[%emt 0:00:19]} 3. d4 {[%emt 0:00:00]} cxd4 {[%emt 0:00:08]} 4. Nxd4 {[%emt 0:00:00]} Nc6 {[%emt 0:01:42]} 5. Nc3 {[%emt 0:01:08]} Qc7 {[%emt 0:00:57]} 6. Be3 {[%emt 0:02:01]} a6 {[%emt 0:01:24]} 7. f4 {[%emt 0:03:42]} d6 {[%emt 0:04:45]} 8. a4 {[%emt 0:00:07]} Nf6 {[%emt 0:00:28]} 9. Be2 {[%emt 0:00:06]} Be7 {[%emt 0:00:19]} 10. O-O {[%emt 0:00:05]} O-O {[%emt 0:00:15]} 11. Kh1 {[%emt 0:00:07]} Nxd4 {[%emt 0:00:13]} 12. Qxd4 {[%emt 0:00:44]} Bd7 {[%emt 0:03:12]} 13. e5 {[%emt 0:02:45]} Ne8 {[%emt 0:00:13]} 14. Rad1 {[%emt 0:02:44]} Bc6 {[%emt 0:00:55]} 15. Bf3 {[%emt 0:19:31]} Rd8 {[%emt 0:08:51]} 16. Bxc6 {[%emt 0:06:32]} Qxc6 {[%emt 0:03:25]} 17. Qb6 {[%emt 0:06:34]} Rc8 {[%emt 0:05:55]} 18. Rd3 {[%emt 0:02:06]} Qxb6 {[%emt 0:04:32]} 19. Bxb6 {[%emt 0:00:02]} f6 {[%emt 0:01:29]} 20. exd6 {[%emt 0:02:31]} Nxd6 {[%emt 0:11:35]} 1/2-1/2

[Event "CZE Extraliga 2019-20"]
[Site "Czech Republic"]
[Date "2019.12.01"]
[Round "4.7"]
[White "Studnicka, Tomas"]
[Black "Voloshin, Leonid"]
[Result "1/2-1/2"]
[ECO "A45"]
[WhiteElo "2341"]
[BlackElo "2361"]
[Annotator "ChessBase"]
[PlyCount "35"]
[EventDate "2019.09.15"]
[EventType "team-tourn"]
[EventCountry "CZE"]
[SourceTitle "playchess.com"]
[Source "ChessBase"]
[SourceQuality "1"]
[WhiteTeam "Turnov "]
[BlackTeam "Praha"]
[TimeControl "40/5400+30:1800+30"]

1. d4 {[%emt 0:02:11]} Nf6 {[%emt 0:00:05]} 2. Bf4 {[%emt 0:00:03]} e6 {[%emt 0:01:35]} 3. e3 {[%emt 0:00:15]} d5 {[%emt 0:03:09]} 4. Nd2 {[%emt 0:00:24]} Bd6 {[%emt 0:00:49]} 5. Bg3 {[%emt 0:00:09]} O-O {[%emt 0:00:33]} 6. Bd3 {[%emt 0:00:38]} c5 {[%emt 0:03:04]} 7. c3 {[%emt 0:00:07]} Qc7 {[%emt 0:02:57]} 8. Ngf3 {[%emt 0:01:16]} Nbd7 {[%emt 0:02:33]} 9. O-O {[%emt 0:05:03]} Bxg3 {[%emt 0:07:03]} 10. hxg3 {[%emt 0:01:27]} e5 {[%emt 0:02:37]} 11. dxe5 {[%emt 0:00:41]} Nxe5 {[%emt 0:00:35]} 12. Nxe5 {[%emt 0:01:17]} Qxe5 {[%emt 0:00:35]} 13. Nf3 {[%emt 0:07:18]} Qe7 {[%emt 0:06:29]} 14. Qa4 {[%emt 0:02:59]} Bd7 {[%emt 0:08:11]} 15. Qf4 {[%emt 0:04:43]} Rfe8 {[%emt 0:10:28]} 16. a4 {[%emt 0:12:30]} Rac8 {[%emt 0:06:58]} 17. Nh4 {[%emt 0:05:12]} g6 {[%emt 0:06:55]} 18. Bb5 {[%emt 0:16:08]} 1/2-1/2